fUSD/lending_fUSD_20250221
["ID","MTS","AMOUNT","RATE_DAILY","PERIOD"]
[353978055,1740172254495,-661.23,0.00011285,2]
[353978056,1740172254504,-1149.69,0.00011285,2]
[353978057,1740172254513,-500.0,0.00011285,2]
[353978058,1740172254522,-184.91317688,0.00011285,2]
[353978059,1740172254532,-2660.4,0.00011285,2]
[353978060,1740172254541,-563.50282394,0.00011285,2]
[353978061,1740172254550,-1991.69,0.00011285,2]
[353978062,1740172254559,-500.0,0.00011285,2]
[353978063,1740172254569,-614.9,0.00011285,2]
[353978064,1740172254578,-1151.83,0.00011285,2]
[353978065,1740172254587,-500.0,0.00011285,2]
[353978066,1740172254596,-811.74,0.00011285,2]
[353978067,1740172254605,-1450.82,0.00011285,2]
[353978068,1740172254614,-1170.09,0.00011285,2]
[353978069,1740172254624,-500.0,0.00011285,2]
[353978070,1740172254633,-500.0,0.00011285,2]
[353978071,1740172254642,-500.0,0.00011285,2]
[353978072,1740172254651,-500.0,0.00011285,2]
[353978073,1740172254661,-897.28,0.00011285,2]
[353978074,1740172254670,-1737.05,0.00011285,2]
[353978075,1740172254679,-500.0,0.00011285,2]
[353978076,1740172254688,-853.87,0.00011285,2]
[353978077,1740172254698,-500.0,0.00011285,2]
[353978078,1740172254707,-638.91,0.00011285,2]
[353978079,1740172254716,-511.08,0.00011285,2]
[353978080,1740172254726,-500.0,0.00011285,2]
[353978081,1740172254735,-500.0,0.00011285,2]
[353978082,1740172254744,-1229.62,0.00011285,2]
[353978083,1740172254753,-580.46,0.00011285,2]
[353978084,1740172254762,-500.0,0.00011285,2]
[353978085,1740172254772,-1513.79,0.00011285,2]
[353978086,1740172254781,-794.55,0.00011285,2]
[353978087,1740172254790,-1136.08,0.00011285,2]
[353978088,1740172254799,-1175.93,0.00011285,2]
[353978089,1740172254808,-500.0,0.00011285,2]
[353978090,1740172254817,-500.0,0.00011285,2]
[353978091,1740172254826,-987.72,0.00011285,2]
[353978092,1740172254835,-731.97,0.00011285,2]
[353978093,1740172254845,-246.57414701,0.00011285,2]
[353978094,1740172254855,-500.0,0.00011285,2]
[353978095,1740172254865,-1199.69,0.00011285,2]
[353978096,1740172254875,-1172.47,0.00011285,2]
[353978097,1740172254885,-500.0,0.00011285,2]
[353978098,1740172254895,-2284.05,0.00011285,2]
[353978099,1740172254904,-500.0,0.00011285,2]
[353978100,1740172254914,-5314.28,0.00011285,2]
[353978101,1740172254923,-1158.45,0.00011285,2]
[353978102,1740172254933,-588.49,0.00011285,2]
[353978103,1740172254943,-629.73,0.00011285,2]
[353978104,1740172254952,-500.0,0.00011285,2]
[353978105,1740172254962,-500.0,0.00011285,2]
[353978106,1740172254972,-1637.66,0.00011285,2]
[353978107,1740172254981,-1092.4,0.00011285,2]
[353978108,1740172254991,-500.0,0.00011285,2]
[353978109,1740172255000,-1130.79,0.00011285,2]
[353978110,1740172255010,-589.95,0.00011285,2]
[353978111,1740172255019,-961.8,0.00011285,2]
[353978112,1740172255029,-500.0,0.00011285,2]
[353978113,1740172255038,-839.71,0.00011285,2]
[353978114,1740172255047,-500.0,0.00011285,2]
[353978115,1740172255058,-500.0,0.00011285,2]
[353978116,1740172255067,-597.77,0.00011285,2]
[353978117,1740172255076,-863.56,0.00011285,2]
[353978118,1740172255085,-2270.11,0.00011285,2]
[353978119,1740172255095,-2553.24,0.00011285,2]
[353978120,1740172255104,-500.0,0.00011285,2]
[353978121,1740172255113,-1389.81,0.00011285,2]
[353978122,1740172255122,-500.0,0.00011285,2]
[353978123,1740172255131,-4217.13181045,0.00011285,2]
[353978124,1740172255140,-500.0,0.00011286,2]
[353978125,1740172255149,-519.67,0.00011286,2]
[353978126,1740172255158,-500.0,0.00011286,2]
[353978127,1740172255167,-500.0,0.00011286,2]
[353978128,1740172255177,-500.0,0.00011286,2]
[353978129,1740172255186,-500.0,0.00011286,2]
[353978130,1740172255195,-500.0,0.00011286,2]
[353978131,1740172255205,-248.88168361,0.00011286,2]
[353978132,1740172255216,-500.0,0.00011286,2]
[353978133,1740172255226,-500.0,0.00011286,2]
[353978134,1740172255235,-500.0,0.00011286,2]
[353978135,1740172255244,-500.0,0.00011286,2]
[353978136,1740172255253,-500.0,0.00011286,2]
[353978137,1740172255262,-500.0,0.00011286,2]
[353978138,1740172255271,-500.0,0.00011286,2]
[353978139,1740172255280,-500.0,0.00011286,2]
[353978140,1740172255289,-500.0,0.00011286,2]
[353978141,1740172255298,-500.0,0.00011286,2]
[353978142,1740172255307,-500.0,0.00011286,2]
[353978143,1740172255316,-500.0,0.00011286,2]
[353978144,1740172255326,-500.0,0.00011286,2]
[353978145,1740172255335,-500.0,0.00011286,2]
[353978146,1740172255345,-500.0,0.00011287,2]
[353978147,1740172255354,-150.0,0.00011321,2]
[353978148,1740172255363,-153.0,0.00011338,2]
[353978149,1740172255372,-153.0,0.00011338,2]
[353978150,1740172255381,-153.0,0.00011338,2]
[353978151,1740172255391,-153.0,0.00011338,2]
[353978152,1740172255405,-153.0,0.00011338,2]
[353978153,1740172255461,-153.0,0.00011338,2]
[353978154,1740172255472,-153.0,0.00011338,2]
[353978155,1740172255483,-153.0,0.00011338,2]
[353978156,1740172255492,-153.0,0.00011338,2]
[353978157,1740172255501,-153.0,0.00011338,2]
[353978158,1740172255510,-153.0,0.00011338,2]
[353978159,1740172255519,-153.0,0.00011338,2]
[353978160,1740172255528,-153.0,0.00011338,2]
[353978161,1740172255537,-153.0,0.00011338,2]
[353978162,1740172255546,-153.0,0.00011338,2]
[353978163,1740172255555,-153.0,0.00011338,2]
[353978164,1740172255564,-422.97146626,0.0001134,2]
[353978165,1740172255573,-2251.34484798,0.00011348,2]
[353978166,1740172255582,-210.98615721,0.00011349,2]
[353978167,1740172255591,-500.0,0.00011366,2]
[353978168,1740172255600,-649.82,0.00011366,2]
[353978169,1740172255609,-622.03,0.00011366,2]
[353978170,1740172255618,-1075.7,0.00011366,2]
[353978171,1740172255627,-855.71,0.00011366,2]
[353978172,1740172255636,-1013.9,0.00011366,2]
[353978173,1740172255646,-1231.28,0.00011366,2]
[353978174,1740172255657,-769.3,0.00011366,2]
[353978175,1740172255666,-500.0,0.00011366,2]
[353978176,1740172255675,-916.53,0.00011366,2]
[353978177,1740172255688,-1480.7,0.00011366,2]
[353978178,1740172255696,-1452.9,0.00011366,2]
[353978179,1740172255705,-1092.95,0.00011366,2]
[353978180,1740172255715,-761.8,0.00011366,2]
[353978181,1740172255726,-931.16,0.00011366,2]
[353978182,1740172255735,-500.0,0.00011366,2]
[353978183,1740172255744,-1001.35,0.00011366,2]
[353978184,1740172255754,-2093.79,0.00011366,2]
[353978185,1740172255764,-591.75,0.00011366,2]
[353978186,1740172255773,-757.37,0.00011366,2]
[353978187,1740172255783,-500.0,0.00011366,2]
[353978188,1740172255792,-1067.6,0.00011366,2]
[353978189,1740172255801,-500.0,0.00011366,2]
[353978190,1740172255811,-500.0,0.00011366,2]
[353978191,1740172255820,-1427.11,0.00011366,2]
[353978192,1740172255829,-782.56,0.00011366,2]
[353978193,1740172255838,-969.96,0.00011366,2]
[353978194,1740172255848,-842.52,0.00011366,2]
[353978195,1740172255859,-830.72,0.00011366,2]
[353978196,1740172255868,-663.66,0.00011366,2]
[353978197,1740172255878,-1852.0,0.00011367,2]
[353978198,1740172255887,-538.49,0.00011367,2]
[353978199,1740172255896,-500.0,0.00011367,2]
[353978200,1740172255906,-691.94,0.00011367,2]
[353978201,1740172255915,-500.0,0.00011367,2]
[353978202,1740172255924,-500.0,0.00011367,2]
[353978203,1740172255934,-644.17,0.00011367,2]
[353978204,1740172255943,-500.0,0.00011367,2]
[353978205,1740172255952,-500.0,0.00011367,2]
[353978206,1740172255961,-667.56,0.00011367,2]
[353978207,1740172255970,-500.0,0.00011367,2]
[353978208,1740172255980,-756.41,0.00011367,2]
[353978209,1740172255989,-500.0,0.00011367,2]
[353978210,1740172255998,-651.32,0.00011367,2]
[353978211,1740172256007,-500.0,0.00011367,2]
[353978212,1740172256017,-500.0,0.00011367,2]
[353978213,1740172256027,-500.0,0.00011367,2]
[353978214,1740172256038,-500.0,0.00011367,2]
[353978215,1740172256048,-552.92,0.00011367,2]
[353978216,1740172256057,-664.1,0.00011367,2]
[353978217,1740172256066,-500.0,0.00011367,2]
[353978218,1740172256086,-500.0,0.00011367,2]
[353978219,1740172256095,-500.0,0.00011367,2]
[353978220,1740172256105,-641.81,0.00011367,2]
[353978221,1740172256115,-500.0,0.00011367,2]
[353978222,1740172256125,-500.0,0.00011367,2]
[353978223,1740172256134,-500.0,0.00011367,2]
[353978224,1740172256144,-529.44,0.00011367,2]
[353978225,1740172256154,-500.0,0.00011367,2]
[353978226,1740172256164,-500.0,0.00011367,2]
[353978227,1740172256173,-500.0,0.00011367,2]
[353978228,1740172256183,-580.98,0.00011367,2]
[353978229,1740172256192,-500.0,0.00011367,2]
[353978230,1740172256203,-500.0,0.00011367,2]
[353978231,1740172256212,-500.0,0.00011367,2]
[353978232,1740172256222,-656.48,0.00011367,2]
[353978233,1740172256232,-500.0,0.00011367,2]
[353978234,1740172256241,-645.51,0.00011367,2]
[353978235,1740172256251,-500.0,0.00011367,2]
[353978236,1740172256260,-500.0,0.00011367,2]
[353978237,1740172256270,-500.0,0.00011367,2]
[353978238,1740172256280,-875.23,0.00011367,2]
[353978239,1740172256290,-819.32,0.00011367,2]
[353978240,1740172256299,-514.61,0.00011367,2]
[353978241,1740172256309,-500.0,0.00011367,2]
[353978242,1740172256319,-681.73,0.00011367,2]
[353978243,1740172256329,-500.0,0.00011367,2]
[353978244,1740172256338,-773.23,0.00011367,2]
[353978245,1740172256348,-500.0,0.00011367,2]
[353978246,1740172256358,-500.0,0.00011367,2]
[353978247,1740172256367,-500.0,0.00011367,2]
[353978248,1740172256377,-500.0,0.00011367,2]
[353978249,1740172256387,-193.607216,0.00011367,2]
[353978250,1740172256397,-500.0,0.00011367,2]
[353978251,1740172256409,-760.5,0.00011367,2]
[353978252,1740172256419,-500.0,0.00011367,2]
[353978253,1740172256428,-500.0,0.00011367,2]
[353978254,1740172256438,-565.11,0.00011367,2]
[353978255,1740172256449,-281.23673,0.00011367,2]
[353978256,1740172256458,-500.0,0.00011367,2]
[353978257,1740172256467,-500.0,0.00011367,2]
[353978258,1740172256477,-703.17,0.00011367,2]
[353978259,1740172256488,-500.0,0.00011367,2]
[353978260,1740172256498,-709.63,0.00011367,2]
[353978261,1740172256507,-562.69,0.00011367,2]
[353978262,1740172256517,-696.24,0.00011367,2]
[353978263,1740172256526,-567.21,0.00011367,2]
[353978264,1740172256535,-500.0,0.00011367,2]
[353978265,1740172256544,-694.16,0.00011367,2]
[353978266,1740172256553,-678.43,0.00011367,2]
[353978267,1740172256562,-690.55,0.00011367,2]
[353978268,1740172256571,-500.0,0.00011367,2]
[353978269,1740172256580,-500.0,0.00011367,2]
[353978270,1740172256589,-663.28,0.00011367,2]
[353978271,1740172256598,-500.0,0.00011367,2]
[353978272,1740172256607,-996.53,0.00011367,2]
[353978273,1740172256617,-731.38,0.00011367,2]
[353978274,1740172256626,-500.0,0.00011367,2]
[353978275,1740172256635,-643.91,0.00011367,2]
[353978276,1740172256644,-500.0,0.00011367,2]
[353978277,1740172256654,-500.0,0.00011367,2]
[353978278,1740172256663,-500.0,0.00011367,2]
[353978279,1740172256672,-500.0,0.00011367,2]
[353978280,1740172256681,-500.0,0.00011367,2]
[353978281,1740172256691,-500.0,0.00011367,2]
[353978282,1740172256699,-500.0,0.00011367,2]
[353978283,1740172256709,-731.06,0.00011367,2]
[353978284,1740172256718,-500.0,0.00011367,2]
[353978285,1740172256728,-500.0,0.00011367,2]
[353978286,1740172256737,-500.0,0.00011367,2]
[353978287,1740172256746,-710.81,0.00011367,2]
[353978288,1740172256755,-500.6,0.00011367,2]
[353978289,1740172256764,-500.0,0.00011367,2]
[353978290,1740172256774,-624.32,0.00011367,2]
[353978291,1740172256783,-500.0,0.00011367,2]
[353978292,1740172256792,-500.0,0.00011367,2]
[353978293,1740172256802,-595.44,0.00011367,2]
[353978294,1740172256811,-500.0,0.00011367,2]
[353978295,1740172256821,-751.36,0.00011367,2]
[353978296,1740172256830,-636.57,0.00011367,2]
[353978297,1740172256840,-500.0,0.00011367,2]
[353978298,1740172256849,-500.0,0.00011367,2]
[353978299,1740172256860,-500.0,0.00011367,2]
[353978300,1740172256871,-893.82,0.00011367,2]
[353978301,1740172256880,-174.831552,0.00011367,2]
[353978302,1740172256889,-500.0,0.00011367,2]
[353978303,1740172256899,-500.0,0.00011367,2]
[353978304,1740172256907,-319.33114027,0.00011367,2]
[353978305,1740172256917,-500.0,0.00011367,2]
[353978306,1740172256926,-567.05273827,0.00011367,2]
[353978307,1740172256935,-587.07,0.00011367,2]
[353978308,1740172256945,-500.0,0.00011367,2]
[353978309,1740172256954,-1704.14,0.00011367,2]
[353978310,1740172256963,-500.0,0.00011367,2]
[353978311,1740172256974,-870.24,0.00011367,2]
[353978312,1740172256982,-523.06,0.00011367,2]
[353978313,1740172256992,-500.0,0.00011367,2]
[353978314,1740172257001,-1140.49,0.00011367,2]
[353978315,1740172257011,-500.0,0.00011367,2]
[353978316,1740172257020,-1885.94,0.00011367,2]
[353978317,1740172257036,-762.29,0.00011367,2]
[353978318,1740172257046,-985.36,0.00011367,2]
[353978319,1740172257057,-1329.74,0.00011367,2]
[353978320,1740172257067,-1050.0,0.00011367,2]
[353978321,1740172257076,-841.39,0.00011367,2]
[353978322,1740172257086,-500.0,0.00011367,2]
[353978323,1740172257097,-1478.11,0.00011367,2]
[353978324,1740172257109,-1687.94,0.00011367,2]
[353978325,1740172257119,-1236.11,0.00011367,2]
[353978326,1740172257129,-500.0,0.00011367,2]
[353978327,1740172257138,-500.0,0.00011367,2]
[353978328,1740172257147,-527.93,0.00011367,2]
[353978329,1740172257157,-500.0,0.00011367,2]
[353978330,1740172257167,-1031.57,0.00011367,2]
[353978331,1740172257176,-836.59,0.00011367,2]
[353978332,1740172257186,-1035.44,0.00011367,2]
[353978333,1740172257195,-500.0,0.00011367,2]
[353978334,1740172257205,-1245.12,0.00011367,2]
[353978335,1740172257215,-1117.96,0.00011367,2]
[353978336,1740172257224,-500.0,0.00011367,2]
[353978337,1740172257233,-1068.45,0.00011367,2]
[353978338,1740172257243,-1183.89,0.00011367,2]
[353978339,1740172257252,-500.0,0.00011367,2]
[353978340,1740172257261,-500.0,0.00011367,2]
[353978341,1740172257270,-1056.87,0.00011367,2]
[353978342,1740172257279,-5637.87,0.00011367,2]
[353978343,1740172257289,-559.58,0.00011367,2]
[353978344,1740172257299,-797.09,0.00011367,2]
[353978345,1740172257308,-1352.53,0.00011367,2]
[353978346,1740172257317,-739.7,0.00011367,2]
[353978347,1740172257326,-500.0,0.00011367,2]
[353978348,1740172257335,-1479.65,0.00011367,2]
[353978349,1740172257344,-500.0,0.00011367,2]
[353978350,1740172257353,-896.66,0.00011367,2]
[353978351,1740172257363,-2215.1,0.00011367,2]
[353978352,1740172257371,-1219.06,0.00011367,2]
[353978353,1740172257380,-500.0,0.00011367,2]
[353978354,1740172257390,-1253.82,0.00011367,2]
[353978355,1740172257402,-1134.86,0.00011367,2]
[353978356,1740172257415,-1523.22,0.00011367,2]
[353978357,1740172257424,-500.0,0.00011367,2]
[353978358,1740172257433,-500.0,0.00011367,2]
[353978359,1740172257443,-500.0,0.00011367,2]
[353978360,1740172257452,-1190.42,0.00011367,2]
[353978361,1740172257461,-500.0,0.00011367,2]
[353978362,1740172257470,-942.8,0.00011367,2]
[353978363,1740172257485,-500.0,0.00011367,2]
[353978364,1740172257495,-500.0,0.00011367,2]
[353978365,1740172257504,-579.37,0.00011367,2]
[353978366,1740172257513,-1258.98,0.00011367,2]
[353978367,1740172257522,-1291.85,0.00011367,2]
[353978368,1740172257531,-500.0,0.00011367,2]
[353978369,1740172257541,-661.23,0.00011367,2]
[353978370,1740172257550,-1149.69,0.00011367,2]
[353978371,1740172257559,-500.0,0.00011367,2]
[353978372,1740172257568,-2660.4,0.00011367,2]
[353978373,1740172257577,-1991.69,0.00011367,2]
[353978374,1740172257586,-500.0,0.00011367,2]
[353978375,1740172257595,-614.9,0.00011367,2]
[353978376,1740172257604,-1151.83,0.00011367,2]
[353978377,1740172257613,-500.0,0.00011367,2]
[353978378,1740172257622,-811.74,0.00011367,2]
[353978379,1740172257631,-1450.82,0.00011367,2]
[353978380,1740172257641,-1170.09,0.00011367,2]
[353978381,1740172257652,-500.0,0.00011367,2]
[353978382,1740172257661,-500.0,0.00011367,2]
[353978383,1740172257670,-500.0,0.00011367,2]
[353978384,1740172257679,-500.0,0.00011367,2]
[353978385,1740172257690,-897.28,0.00011367,2]
[353978386,1740172257699,-1737.05,0.00011367,2]
[353978387,1740172257709,-500.0,0.00011367,2]
[353978388,1740172257718,-853.87,0.00011367,2]
[353978389,1740172257728,-500.0,0.00011367,2]
[353978390,1740172257737,-638.91,0.00011367,2]
[353978391,1740172257746,-511.08,0.00011367,2]
[353978392,1740172257755,-500.0,0.00011367,2]
[353978393,1740172257765,-500.0,0.00011367,2]
[353978394,1740172257774,-1229.62,0.00011367,2]
[353978395,1740172257785,-580.46,0.00011367,2]
[353978396,1740172257794,-500.0,0.00011367,2]
[353978397,1740172257803,-1513.79,0.00011367,2]
[353978398,1740172257813,-794.55,0.00011367,2]
[353978399,1740172257822,-1136.08,0.00011367,2]
[353978400,1740172257832,-1175.93,0.00011367,2]
[353978401,1740172257841,-500.0,0.00011367,2]
[353978402,1740172257850,-500.0,0.00011367,2]
[353978403,1740172257859,-987.72,0.00011367,2]
[353978404,1740172257869,-731.97,0.00011367,2]
[353978405,1740172257878,-500.0,0.00011367,2]
[353978406,1740172257888,-1199.69,0.00011367,2]
[353978407,1740172257897,-1172.47,0.00011367,2]
[353978408,1740172257909,-552.76033742,0.00011367,2]
[353978409,1740172257918,-2284.05,0.00011367,2]
[353978410,1740172257927,-500.0,0.00011367,2]
[353978411,1740172257936,-5314.28,0.00011367,2]
[353978412,1740172257946,-1158.45,0.00011367,2]
[353978413,1740172257955,-588.49,0.00011367,2]
[353978414,1740172257964,-500.0,0.00011367,2]
[353978415,1740172257974,-500.0,0.00011367,2]
[353978416,1740172257983,-1637.66,0.00011367,2]
[353978417,1740172257992,-1092.4,0.00011367,2]
[353978418,1740172258002,-500.0,0.00011367,2]
[353978419,1740172258011,-1130.79,0.00011367,2]
[353978420,1740172258020,-170.990071,0.00011367,2]
[353978421,1740172258029,-589.95,0.00011367,2]
[353978422,1740172258039,-961.8,0.00011367,2]
[353978423,1740172258048,-500.0,0.00011367,2]
[353978424,1740172258057,-839.71,0.00011367,2]
[353978425,1740172258067,-374.13906925,0.00011367,2]
[353978426,1740172258076,-500.0,0.00011367,2]
[353978427,1740172258086,-597.77,0.00011367,2]
[353978428,1740172258095,-863.56,0.00011367,2]
[353978429,1740172258104,-2270.11,0.00011367,2]
[353978430,1740172258114,-2553.24,0.00011367,2]
[353978431,1740172258123,-500.0,0.00011367,2]
[353978432,1740172258132,-1389.81,0.00011367,2]
[353978433,1740172258142,-500.0,0.00011367,2]
[353978434,1740172258151,-500.0,0.00011368,2]
[353978435,1740172258160,-519.67,0.00011368,2]
[353978436,1740172258169,-500.0,0.00011368,2]
[353978437,1740172258179,-500.0,0.00011368,2]
[353978438,1740172258188,-500.0,0.00011368,2]
[353978439,1740172258197,-500.0,0.00011368,2]
[353978440,1740172258206,-500.0,0.00011368,2]
[353978441,1740172258216,-500.0,0.00011368,2]
[353978442,1740172258227,-500.0,0.00011368,2]
[353978443,1740172258237,-500.0,0.00011368,2]
[353978444,1740172258246,-500.0,0.00011368,2]
[353978445,1740172258256,-500.0,0.00011368,2]
[353978446,1740172258265,-500.0,0.00011368,2]
[353978447,1740172258275,-500.0,0.00011368,2]
[353978448,1740172258284,-500.0,0.00011368,2]
[353978449,1740172258294,-500.0,0.00011368,2]
[353978450,1740172258304,-500.0,0.00011368,2]
[353978451,1740172258313,-500.0,0.00011368,2]
[353978452,1740172258322,-500.0,0.00011368,2]
[353978453,1740172258331,-500.0,0.00011368,2]
[353978454,1740172258340,-500.0,0.00011368,2]
[353978455,1740172258350,-500.0,0.00011369,2]
[353978456,1740172258359,-498.89,0.00011369,2]
[353978457,1740172258368,-327.75,0.00011407,2]
[353978458,1740172258378,-7930.84512847,0.00011433,2]
[353978459,1740172258387,-150.0,0.00011438,2]
[353978460,1740172258397,-500.0,0.00011448,2]
[353978461,1740172258409,-649.82,0.00011448,2]
[353978462,1740172258418,-622.03,0.00011448,2]
[353978463,1740172258427,-1075.7,0.00011448,2]
[353978464,1740172258436,-855.71,0.00011448,2]
[353978465,1740172258446,-1013.9,0.00011448,2]
[353978466,1740172258456,-1231.28,0.00011448,2]
[353978467,1740172258465,-769.3,0.00011448,2]
[353978468,1740172258477,-500.0,0.00011448,2]
[353978469,1740172258487,-916.53,0.00011448,2]
[353978470,1740172258500,-1480.7,0.00011448,2]
[353978471,1740172258515,-1452.9,0.00011448,2]
[353978472,1740172258524,-1092.95,0.00011448,2]
[353978473,1740172258534,-761.8,0.00011448,2]
[353978474,1740172258544,-931.16,0.00011448,2]
[353978475,1740172258553,-500.0,0.00011448,2]
[353978476,1740172258563,-1001.35,0.00011448,2]
[353978477,1740172258573,-2093.79,0.00011448,2]
[353978478,1740172258583,-591.75,0.00011448,2]
[353978479,1740172258593,-757.37,0.00011448,2]
[353978480,1740172258603,-500.0,0.00011448,2]
[353978481,1740172258612,-1067.6,0.00011448,2]
[353978482,1740172258621,-500.0,0.00011448,2]
[353978483,1740172258631,-500.0,0.00011448,2]
[353978484,1740172258640,-1427.11,0.00011448,2]
[353978485,1740172258649,-782.56,0.00011448,2]
[353978486,1740172258659,-969.96,0.00011448,2]
[353978487,1740172258668,-842.52,0.00011448,2]
[353978488,1740172258678,-830.72,0.00011448,2]
[353978489,1740172258688,-663.66,0.00011448,2]
[353978490,1740172258697,-538.49,0.00011449,2]
[353978491,1740172258706,-500.0,0.00011449,2]
[353978492,1740172258716,-691.94,0.00011449,2]
[353978493,1740172258726,-500.0,0.00011449,2]
[353978494,1740172258735,-500.0,0.00011449,2]
[353978495,1740172258744,-644.17,0.00011449,2]
[353978496,1740172258753,-500.0,0.00011449,2]
[353978497,1740172258763,-500.0,0.00011449,2]
[353978498,1740172258772,-667.56,0.00011449,2]
[353978499,1740172258782,-500.0,0.00011449,2]
[353978500,1740172258792,-756.41,0.00011449,2]
[353978501,1740172258802,-500.0,0.00011449,2]
[353978502,1740172258812,-651.32,0.00011449,2]
[353978503,1740172258821,-500.0,0.00011449,2]
[353978504,1740172258831,-500.0,0.00011449,2]
[353978505,1740172258841,-500.0,0.00011449,2]
[353978506,1740172258850,-500.0,0.00011449,2]
[353978507,1740172258860,-552.92,0.00011449,2]
[353978508,1740172258870,-664.1,0.00011449,2]
[353978509,1740172258879,-500.0,0.00011449,2]
[353978510,1740172258888,-500.0,0.00011449,2]
[353978511,1740172258898,-500.0,0.00011449,2]
[353978512,1740172258907,-641.81,0.00011449,2]
[353978513,1740172258917,-500.0,0.00011449,2]
[353978514,1740172258927,-500.0,0.00011449,2]
[353978515,1740172258937,-500.0,0.00011449,2]
[353978516,1740172258946,-529.44,0.00011449,2]
[353978517,1740172258956,-500.0,0.00011449,2]
[353978518,1740172258965,-500.0,0.00011449,2]
[353978519,1740172258977,-500.0,0.00011449,2]
[353978520,1740172258986,-580.98,0.00011449,2]
[353978521,1740172258995,-462.79471732,0.00011449,2]
[353978522,1740172259005,-500.0,0.00011449,2]
[353978523,1740172259014,-500.0,0.00011449,2]
[353978524,1740172259023,-656.48,0.00011449,2]
[353978525,1740172259033,-500.0,0.00011449,2]
[353978526,1740172259042,-645.51,0.00011449,2]
[353978527,1740172259051,-500.0,0.00011449,2]
[353978528,1740172259060,-500.0,0.00011449,2]
[353978529,1740172259070,-500.0,0.00011449,2]
[353978530,1740172259080,-875.23,0.00011449,2]
[353978531,1740172259089,-819.32,0.00011449,2]
[353978532,1740172259099,-514.61,0.00011449,2]
[353978533,1740172259109,-681.73,0.00011449,2]
[353978534,1740172259118,-500.0,0.00011449,2]
[353978535,1740172259128,-500.0,0.00011449,2]
[353978536,1740172259137,-773.23,0.00011449,2]
[353978537,1740172259147,-500.0,0.00011449,2]
[353978538,1740172259156,-500.0,0.00011449,2]
[353978539,1740172259165,-500.0,0.00011449,2]
[353978540,1740172259175,-500.0,0.00011449,2]
[353978541,1740172259184,-500.0,0.00011449,2]
[353978542,1740172259194,-193.607216,0.00011449,2]
[353978543,1740172259203,-760.5,0.00011449,2]
[353978544,1740172259212,-500.0,0.00011449,2]
[353978545,1740172259222,-500.0,0.00011449,2]
[353978546,1740172259234,-565.11,0.00011449,2]
[353978547,1740172259243,-281.23673,0.00011449,2]
[353978548,1740172259252,-500.0,0.00011449,2]
[353978549,1740172259261,-500.0,0.00011449,2]
[353978550,1740172259271,-703.17,0.00011449,2]
[353978551,1740172259281,-500.0,0.00011449,2]
[353978552,1740172259290,-709.63,0.00011449,2]
[353978553,1740172259299,-562.69,0.00011449,2]
[353978554,1740172259309,-696.24,0.00011449,2]